Cogmind - Beta 17 @@@ ROGUE MODE // 2026.06.24 @ 21:04:22 Player: beans Result: Destroyed by G-47 Trooper with Particle Gun Performance ------------- Evolutions (2) 1000 Regions Visited (4) 800 Robots Destroyed (41) 205 Value Destroyed (853) 853 Prototype IDs (3) 60 Alien Tech Used (0) 0 Bonus (70) 70 TOTAL SCORE: 2988 Bonus ------- Follower Combat Kills 70 Cogmind --------- Core Integrity 0/550 Matter 95/300 Energy 27/100 System Corruption 0% Temperature Hot (281) Movement Core (150) Ox2 Location -8/Materials Parts ------- > --- POWER (1) -------- (None) > --- PROPULSION (2) --- (None) > --- UTILITY (4) ------ (None) > --- WEAPON (4) ------- Mini Assault Cannon Mini Assault Cannon > --- INVENTORY (5) ---- Structural Scanner Matter Filter Improved Medium Laser Peak State ------------ > --- POWER ------------ Light Nuclear Core > --- PROPULSION ------- Light Treads Light Treads > --- UTILITY ---------- Cooling System Matter Filter Light Armor Plating Light Armor Plating > --- WEAPON ----------- Heavy Assault Rifle Heavy Assault Rifle Mini Assault Cannon Rocket Launcher > --- INVENTORY -------- Structural Scanner Matter Filter Improved Medium Laser Rocket Launcher [Rating: 25] Favorites ----------- Power Improved Ion Engine Engine Improved Ion Engine Power Core Light Nuclear Core Propulsion Light Treads Treads Light Treads Leg Aluminum Leg Utility Heat Sink Device Heat Sink Protection Light Armor Plating Weapon Heavy Assault Rifle Energy Gun Improved Medium Laser Ballistic Gun Heavy Assault Rifle Ballistic Cannon Mini Assault Cannon Launcher Rocket Launcher Build | -11 -10 -9 -9 -8 ------- Run | Yrd Mat Mat Min Mat Slots Evolved 4 | . . 2 . 2 Power . | . . . . . Propulsion . | . . . . . Utility 2 | . . 2 . . Weapon 2 | . . . . 2 Parts Attached 35 | 4 3 11 9 8 Power 5 | 1 1 2 . 1 Engine 4 | 1 1 2 . . Core 1 | . . . . 1 Reactor . | . . . . . Propulsion 6 | 2 . . 4 . Treads 4 | 2 . . 2 . Leg 2 | . . . 2 . Wheel . | . . . . . Hover . | . . . . . Flight . | . . . . . Utility 11 | . . 5 3 3 Device 9 | . . 5 2 2 Storage . | . . . . . Processor . | . . . . . Hackware . | . . . . . Protection 2 | . . . 1 1 Artifact . | . . . . . Weapon 13 | 1 2 4 2 4 Energy Gun 5 | . . 4 . 1 Energy Cannon . | . . . . . Ballistic Gun 3 | 1 . . 2 . Ballistic Cannon 2 | . . . . 2 Launcher 3 | . 2 . . 1 Special Weapon . | . . . . . Impact Weapon . | . . . . . Slashing Weapon . | . . . . . Piercing Weapon . | . . . . . Special Melee Weapon . | . . . . . Unidentified Prototypes 3 | . . 1 . 2 Parts Lost 14 | . . 2 1 11 Power 1 | . . . . 1 Propulsion 4 | . . 1 1 2 Utility 5 | . . 1 . 4 Weapon 4 | . . . . 4 Highest Loss Streak 11 | . . 2 1 11 To Critical Strikes . | . . . . . Average Backups 4 | . 2 5 5 4 Power . | . . 1 . . Propulsion . | . . . . . Utility . | . . . . 1 Weapon 3 | . 1 3 4 3 Tool/Special . | . . . . . Unused Backups 4 | . . 1 1 2 Power . | . . . . . Propulsion . | . . . . . Utility 2 | . . 1 . 1 Weapon 2 | . . . 1 1 Tool/Special . | . . . . . Average Slot Usage (%) 79 | . 62 61 98 73 Engine 9 | . 14 11 11 3 Treads 17 | . 28 20 12 16 Leg 3 | . . . 8 . Device 22 | . . 12 37 17 Protection 4 | . . . 6 13 Energy Gun 7 | . . 10 9 . Ballistic Gun 10 | . 9 7 12 15 Launcher 1 | . 10 . . . Peak Build Rating 25 | 4 8 13 16 25 Average Rating 11 | 3 5 8 14 16 On Entrance 7 | . 4 5 13 14 Avg Prop Armor Cover (%) . | . . . . . Naked Turns . | . . . . . Heaviest Build 26 | 6 15 16 20 26 Greatest Support 40 | 40 40 40 40 40 Greatest Overweight (x) 5 | . . . 5 . Average Overweight (x) . | . . . . . Largest Inventory Capacity 5 | 5 5 5 5 5 Average Capacity 5 | 5 5 5 5 5 Most Carried 5 | 3 5 5 5 5 Average Carried 4 | . 3 4 4 4 Final Capacity 5 | 5 5 5 5 5 Final Carried 5 | . 5 5 5 3 Class Distribution -------------------- 54% | Scavenger-Mutant 45% | Mutant Dominant Class ---------------- Mutant | -10/Materials Mutant | -9/Materials Scavenger-Mutant | -9/Mines Scavenger-Mutant | -8/Materials Resources | -11 -10 -9 -9 -8 ----------- Run | Yrd Mat Mat Min Mat Matter Collected 977 | 149 . 544 156 128 Remotely . | . . . . . Salvage Created 1512 | . 90 699 463 260 Parts 78 | . 11 30 20 17 Haulers Intercepted 1 | . 1 . . . Recyclers Shooed 6 | . . 2 2 2 Parts Field Recycled . | . . . . . Retrieved Matter . | . . . . . Parts Self-Destructed . | . . . . . Prevented . | . . . . . Parts Restored . | . . . . . Kills | -11 -10 -9 -9 -8 ------- Run | Yrd Mat Mat Min Mat Combat Hostiles Destroyed 24 | . 2 9 6 7 Guns 16 | . . 8 6 2 Cannons 1 | . . . . 1 AOE 6 | . 2 . . 4 Classes Destroyed 10 | . 4 3 2 1 Worker 3 | . 1 1 . 1 Builder 4 | . 2 1 . 1 Tunneler 1 | . . . 1 . Hauler 1 | . 1 . . . Recycler 8 | . . 3 3 2 Swarmer 7 | . . . 3 4 Grunt 11 | . 2 6 2 1 Brawler 1 | . . 1 . . Sentry 4 | . . 2 1 1 Heavy 1 | . . . . 1 Best Kill Streak 6 | . 6 5 3 4 Combat Bots Only 4 | . 2 4 3 4 Max Kills in Single Turn 4 | . 2 2 1 4 Gunslinging 1 | . . 1 . . Exploded 4 | . 1 . . 4 Melee . | . . . . . Uniques/NPCs Destroyed . | . . . . . Combat | -11 -10 -9 -9 -8 -------- Run | Yrd Mat Mat Min Mat Hostile Shots Fired 215 | . 8 53 31 123 Missed 55 | . 2 13 8 32 Hits 160 | . 6 40 23 91 Melee 1 | . . 1 . . Projectile 159 | . 6 39 23 91 AOE 1 | . . . . 1 Critical Strikes 6 | . . 1 1 4 Damage Taken 2667 | . 164 541 280 1682 Core 855 | . 12 144 137 562 Absorbed by Shields . | . . . . . Core Remaining (%) 74 | 100 95 . 29 . Volleys Fired 115 | . 7 52 25 31 Largest 3 | . 2 2 2 3 Hottest 113 | . 66 112 112 113 Shots Fired 230 | . 14 97 50 69 Gun 184 | . 1 97 50 36 Cannon 30 | . . . . 30 Launcher 16 | . 13 . . 3 Special . | . . . . . Kinetic 114 | . 1 25 22 66 Thermal 100 | . . 72 28 . Explosive 16 | . 13 . . 3 Electromagnetic . | . . . . . Robot Hit Streak 13 | . 5 9 8 13 Robot Miss Streak 3 | . 1 3 2 3 Penetration Max . | . . . . . Secondary Targets 6 | . . 4 2 . Max Gunslinging Chain 1 | . . 1 1 . Shots Hit Robots 148 | . 6 61 33 48 Core Hits 70 | . 8 23 15 24 Critical Kills . | . . . . . Critical Parts Destroyed . | . . . . . Critical Strikes 6 | . . 3 1 2 Burn 4 | . . 3 1 . Blast 2 | . . . . 2 Melee Attacks . | . . . . . Impact . | . . . . . Slashing . | . . . . . Piercing . | . . . . . Sneak Attacks . | . . . . . Combat Hostiles . | . . . . . Follow-up Attacks . | . . . . . Damage Inflicted 3676 | . 554 870 532 1720 Guns 1734 | . . 867 532 335 Cannons 769 | . . . . 769 Explosions 1168 | . 552 . . 616 Melee . | . . . . . Ramming 5 | . 2 3 . . Kinetic 1443 | . . 149 190 1104 Thermal 1060 | . . 718 342 . Explosive 1168 | . 552 . . 616 Electromagnetic . | . . . . . Impact . | . . . . . Slashing . | . . . . . Piercing . | . . . . . Highest Corruption . | . . . . . Average Corruption . | . . . . . Corruption Purged . | . . . . . Corruption Blocked . | . . . . . Overload Shots . | . . . . . Overflow Damage 32 | . 10 . . 22 Projectiles 22 | . . . . 22 Explosions 10 | . 10 . . . Melee . | . . . . . Knockbacks 4 | . . . . 4 Impact . | . . . . . Kinetic 4 | . . . . 4 Secondary . | . . . . . Self-Inflicted Damage 114 | . 89 . . 25 Shots 4 | . 3 . . 1 Rammed 4 | . 1 3 . . Targets Rammed 4 | . 1 3 . . Kicked . | . . . . . Crushed . | . . . . . Highest Temperature 254 | . 63 247 27 254 Average Temperature 59 | . 32 61 16 107 Received Heat Transfer 975 | . 42 231 123 579 Siege Activations . | . . . . . Martial Activations . | . . . . . Shielding Activations . | . . . . . Robots Disrupted . | . . . . . Combat Hostiles . | . . . . . Robots Corrupted . | . . . . . Combat Hostiles . | . . . . . Parts Fried . | . . . . . Impact Corruptions . | . . . . . Robots Melted 1 | . . 1 . . Combat Hostiles 1 | . . 1 . . Parts Melted 6 | . . 3 3 . Heat Transferred 2664 | . . 1850 814 . Parts Sabotaged . | . . . . . Parts Stolen . | . . . . . Parts Stripped . | . . . . . Power Chain Reactions . | . . . . . Alert | -11 -10 -9 -9 -8 ------- Run | Yrd Mat Mat Min Mat Maximum Alert Level . | . . . . . Low Security (%) 100 | 100 100 100 100 100 Level 1 . | . . . . . Level 2 . | . . . . . Level 3 . | . . . . . Level 4 . | . . . . . Level 5 . | . . . . . High Security . | . . . . . Max Security . | . . . . . Peak Influence 114 | . 114 107 70 96 Initial 43 | . . 43 35 . Average 24 | . 25 32 16 33 Influence Increases 813 | . 134 247 160 272 Destroy 0b10 Robot/C 520 | . 40 180 120 180 Destroy 0b10 Robot/NC 85 | . 20 25 20 20 Destroy Leader 112 | . 12 40 20 40 Allied During Kill 12 | . . . . 12 Destroy Structure 84 | . 62 2 . 20 Influence Decreases 786 | . 30 260 251 245 Entered New Map 117 | . . 61 56 . Time Decay 515 | . 30 179 185 121 Lost Part 137 | . . 20 10 107 Lost Ally 17 | . . . . 17 Squads Dispatched 5 | . 1 . . 4 Investigation . | . . . . . Extermination . | . . . . . Reinforcement 4 | . 1 . . 3 Assault . | . . . . . Garrison 1 | . . . . 1 Intercept . | . . . . . Searches Triggered . | . . . . . Construction Impeded . | . . . . . Haulers Reinforced . | . . . . . Active Scanning Responses . | . . . . . Cargo Convoy Interrupts . | . . . . . Stealth | -11 -10 -9 -9 -8 --------- Run | Yrd Mat Mat Min Mat Distress Signals . | . . . . . Communications Jammed . | . . . . . Distress Signals . | . . . . . Times Spotted 46 | . 6 11 8 21 Peak Tracking Total 9 | . 2 4 3 9 Tactical Retreats . | . . . . . Traps | -11 -10 -9 -9 -8 ------- Run | Yrd Mat Mat Min Mat Traps Triggered . | . . . . . Indirectly . | . . . . . Trap Hack Attempts . | . . . . . Triggered . | . . . . . Disarmed . | . . . . . Reprogrammed . | . . . . . Reused . | . . . . . Traps Extracted . | . . . . . Installed . | . . . . . Triggered . | . . . . . Machines | -11 -10 -9 -9 -8 ---------- Run | Yrd Mat Mat Min Mat Machines Disabled . | . . . . . Max in Single Turn . | . . . . . Machines Repaired . | . . . . . Machines Dismantled . | . . . . . Machines Sabotaged . | . . . . . Overloaded Fab Kills . | . . . . . Hacking | -11 -10 -9 -9 -8 --------- Run | Yrd Mat Mat Min Mat Machines Accessed . | . . . . . Terminals . | . . . . . Fabricators . | . . . . . Repair Stations . | . . . . . Recycling Units . | . . . . . Scanalyzers . | . . . . . Garrison Access . | . . . . . Total Hacks . | . . . . . Successful . | . . . . . Failed . | . . . . . Catastrophic . | . . . . . Database Lockouts . | . . . . . Manual . | . . . . . Terminals . | . . . . . Fabricators . | . . . . . Repair Stations . | . . . . . Recycling Units . | . . . . . Scanalyzers . | . . . . . Garrison Access . | . . . . . Terminal Hacks . | . . . . . Fabricator Hacks . | . . . . . Repair Station Hacks . | . . . . . Recycling Unit Hacks . | . . . . . Scanalyzer . | . . . . . Garrison Access Hacks . | . . . . . Unauthorized Hacks . | . . . . . Terminals . | . . . . . Fabricators . | . . . . . Repair Stations . | . . . . . Recycling Units . | . . . . . Scanalyzers . | . . . . . Garrison Access . | . . . . . Data Cores Recovered . | . . . . . Used . | . . . . . Hacking Detections . | . . . . . Full Trace Events . | . . . . . Feedback Events . | . . . . . Feedback Blocked . | . . . . . Robot Schematics Acquired . | . . . . . Robots Built . | . . . . . Authchips . | . . . . . Time . | . . . . . Total Robot Build Rating . | . . . . . Part Schematics Acquired . | . . . . . Parts Built . | . . . . . Authchips . | . . . . . Time . | . . . . . Total Part Build Rating . | . . . . . Part Studies Acquired . | . . . . . Parts Repaired . | . . . . . Time . | . . . . . Parts Recycled . | . . . . . Recycled Matter . | . . . . . Retrieved Matter . | . . . . . Retrieved Components . | . . . . . Parts Scanalyzed . | . . . . . Part Schematics Acquired . | . . . . . Parts Damaged . | . . . . . Bothacking | -11 -10 -9 -9 -8 ------------ Run | Yrd Mat Mat Min Mat Used RIF Installer . | . . . . . Robots Hacked . | . . . . . Non-combat . | . . . . . Combat . | . . . . . Robot Hacks Applied . | . . . . . Relay Couplers Released . | . . . . . Fabnet Peak Effective % . | . . . . . Robots Rewired . | . . . . . Allies Hacked . | . . . . . Hacks Repelled . | . . . . . Allies | -11 -10 -9 -9 -8 -------- Run | Yrd Mat Mat Min Mat Total Allies 3 | . . . 3 . Largest Group 3 | . . . 3 3 Highest-Rated Group 40 | . . . 40 40 Highest-Rated Ally 16 | . . . 16 16 Total Orders . | . . . . . Ally Attacks 27 | . . . . 27 Total Damage 284 | . . . . 284 Kills 2 | . . . . 2 Allies Corrupted . | . . . . . Allies Melted . | . . . . . Intel | -11 -10 -9 -9 -8 ------- Run | Yrd Mat Mat Min Mat Active Infowar (turns) 1011 | . . 197 713 101 Structural 1011 | . . 197 713 101 Robot Analysis Total . | . . . . . Derelict Logs Recovered 1 | . . . 1 . Drone Launches . | . . . . . Drone Recoveries . | . . . . . Exploration | -11 -10 -9 -9 -8 ------------- Run | Yrd Mat Mat Min Mat Turns Passed 1779 | 72 174 531 713 289 Spaces Moved 864 | 46 87 189 430 112 Core 11 | 8 . . 3 . Treads 650 | 38 87 189 224 112 Legs 203 | . . . 203 . Wheels . | . . . . . Hover . | . . . . . Flight . | . . . . . Fastest Speed 50 | 50 160 160 120 160 Average Speed 150 | 140 160 160 142 160 Slowest Speed 300 | 160 160 160 300 160 Overloaded Moves . | . . . . . Propulsion Burnouts . | . . . . . Robots Hopped . | . . . . . Potential Cave-ins . | . . . . . Cave-ins Triggered . | . . . . . Exploration Rate (%) 30 | 4 24 21 90 15 Regions Visited 4 Branch Regions 1 Pre-discovered Areas . | . . . . . Known Exits Taken . | . . . . . Unknown Exits Taken 4 | 1 1 1 1 . Scrap Searched 2 | . . . 2 . Spaces Dug . | . . . . . Terrain Destroyed 93 | . 71 . . 22 Melee . | . . . . . Projectile 3 | . . . . 3 AOE 90 | . 71 . . 19 Terrain Rammed . | . . . . . Walls Destroyed . | . . . . . Machines Disabled . | . . . . . Actions | -11 -10 -9 -9 -8 --------- Run | Yrd Mat Mat Min Mat Total 1128 | 53 108 324 480 163 Wait 69 | . . 60 9 . Move 860 | 45 86 188 429 112 Hop . | . . . . . Pick Up 17 | 4 6 2 2 3 Fast Attach 19 | . 1 8 6 4 Attach 9 | 4 2 . . 3 Detach 2 | . 1 . . 1 Swap 11 | . 2 3 3 3 Drop 22 | . 2 8 6 6 Fire 115 | . 7 52 25 31 Melee . | . . . . . Ram . | . . . . . Kick . | . . . . . Crush 4 | . 1 3 . . Escape Stasis . | . . . . . Rewire . | . . . . . Trap . | . . . . . Miscellaneous . | . . . . . Route ------- -11/Scrapyard -10/Materials -9/Materials -9/Mines (discovered 2 exits: [*Mat x2]) -8/Materials History --------- Turn | Location | Event 6 | -11/Scrapyard | Discovered new exit (range 15) 73 | -11/Scrapyard | Entered Materials 194 | -10/Materials | Discovered new exit (range 13) 247 | -10/Materials | Entered another Materials area 247 | -9/Materials | Evolved 2 slots: Utility x2 316 | -9/Materials | Build established: Mutant 668 | -9/Materials | Discovered new exit (range 16) 778 | -9/Materials | Entered Mines 794 | -9/Mines | Core integrity fell below 50% 1057 | -9/Mines | Discovered new exit (range 15) 1063 | -9/Mines | Joined a pair of Derelicts in attacking an 0b10 outpost 1118 | -9/Mines | Build established: Scavenger-Mutant 1291 | -9/Mines | Learned Materials trap positions 1357 | -9/Mines | Discovered new exit (range 10) 1426 | -9/Mines | Assisted by bots powering up and referring to "LRC-V3" 1491 | -9/Mines | Entered Materials 1491 | -8/Materials | Accompanied by 3 allies 1491 | -8/Materials | Evolved 2 slots: Weapon x2 1492 | -8/Materials | Loaded intel: 13 trap records 1732 | -8/Materials | Garrison activated, responded to threat 1765 | -8/Materials | Core integrity fell below 50% 1777 | -8/Materials | Core integrity fell below 20% 1780 | -8/Materials | Destroyed by G-47 Trooper with Particle Gun Last Messages --------------- U-05 Engineer lays Concrete. The unstable cave ceiling collapses. R-06 Scavenger collects Lgt. Assault Rifle. U-05 Engineer lays Concrete. Penetrated by Slug. R-06 Scavenger destroyed. U-05 Engineer destroyed. Destroyed Welding Torch. U-05 Engineer suffers critical hit (Blast). Destroyed Terrain Scan Processor. U-05 Engineer knocked back. Rocket Launcher destroyed. G-50 Soldier destroyed. R-06 Scavenger collects Structural Scanner. Destroyed Lgt. Ion Engine. K-01 Serf destroyed. Slug penetrates Wall. Rocket Launcher destroyed. X-62 Marksman knocked back. Critical hit (Burn: +37). Map ----- +----------------------------------------------------+ | ?????????????????????????????????????????????????? | | ?????????????????????????????????????????????????? | | ?????????????????????????????????????????????????? | | ?????????????????????????????????????????????????? | | ?????????????????????????????????????????????????? | | ?????????????????????????????????????????????????? | | ?????????????????????????????????????????????????? | | ?????????????????????????????????????????????????? | | ?????????????????????????????????????????????????? | | ?????????????????????????????????????????????????? | | ?????????????????????????????????????????????????? | | ?????????????????????????????????????????????????? | | ?????????????????????????????????????????????????? | | ?????????????????????????????????????????????????? | | ?????????????????????????????????????????????????? | | ?????????????????????????????????????????????????? | | ?????????????????????????????????????????????????? | | ???????????????????????????????????""???? # ?????? | | ???????????????????????????????????""?? /??????? | | ??????????????????????????????????? ?? #??????? | | ??????????????????????????????????#/### ###????? | | ????????????????????????#####?????# # #????? | | ????????????????????????#!! #?????# # ####?? | | ????????????????##### ??#!! ##????# # ??? | | ????????????????# #] !#!#### # ?? | | ????????????????#;;;;;;; @ %%% *% ?? | | ??????????????# ! ;;[[!=g g* %% #????? | | ??????????????# [[Y g=g% #????? | | ??????????????#] ;;;;# x= %r####????????? | | ??????????????# ; % * #???????????? | | ??????????????# ; #???????????? | | ??????????????# =! ; !% ;###????????? | | ??????????????# " ;;;+#### #????????? | | ??????????????# """ ;# ????# # #????????? | | ??????????????? #? ??????# #????????? | | ?????????????????######?? ??????# #????????? | | ????????????????????????? ??????# ####????????? | | ????????????????????????? ??????# #????#####??? | | ????????????????????????? ?????## ###### !!#??? | | ????????????????????????? !?????## !!#??? | | ????????????????????????? !?????## [[#??? | | ????????????????????????????????## [[#??? | | ????????????????????????????????## """ ! !#??? | | ????????????????????????????????## """ ! !#??? | | ????????????????????????????###### """ #####??? | | ????????????????????????????###### = #??????? | | ????????????????????????????## # %%[ #??????? | | ????????????????????????????## # ######??????? | | ??????????????????###??????? + # ##??????????? | | ??????????????????############ # ##??????????? | +----------------------------------------------------+ Best States ------------- Heat Dissipation 70 Energy Generation 14 Energy Capacity 265 Matter Stores 300 Matter Capacity 300 Sight Range 16 Terrain Scan Density 10 Armor Coverage 300 Evasion (%) 55 Recoil Reduction 2 Matter Filtering 30 Item Schematics ----------------- None Robot Schematics ------------------ None Fabricated ------------ Nothing Repaired ---------- Nothing Studied --------- None Alien Tech Used ----------------- None Achievements -------------- None Challenges ------------ None Game ------ Seed WarpFluxSpiker Manual? 0 Play Time 00:11:15 Cumulative 352.4 hours Start 2026.06.24 @ 20:55:34 End 2026.06.24 @ 21:04:22 Sessions 1 Manual Loads 0 Difficulty Rogue Special Mode None Game No. 873 Rogue 871 Adventurer 2 Explorer 0 Win Type - Total 1 Types 1/0/0/0/0/0/0/0/0/0 Lore% 50 Gallery% 66 Achievement% 52 Wizard Run 0 Options --------- Layout 2 ASCII 0 Keyboard 0 Movement Mouse Keybinds 0 Fullscreen 1 Font 24/Smallcaps Map View 50x44 Zoom Use 0% Tactical HUD 0 Map Filters NONE Filters NONE Steam 1 RUN: 50470f51-1b54-4fce-af25-017ed25f32be